fUST/lending_fUST_20250601
["ID","MTS","AMOUNT","RATE_DAILY","PERIOD"]
[363568884,1748770257903,-1074.688167,0.00021,2]
[363568886,1748770257913,-1074.688167,0.00021,2]
[363568888,1748770257922,-1074.688167,0.00021,2]
[363568890,1748770257932,-1074.688167,0.00021,2]
[363568891,1748770257941,-1074.688167,0.00021,2]
[363568893,1748770257951,-1074.68817689,0.00021,2]
[363568896,1748770257965,-151.0,0.00021,2]
[363568897,1748770257974,-151.0,0.00021,2]
[363568899,1748770257985,-314.88098828,0.00021,7]
[363568901,1748770257995,-212.80060342,0.00021,7]
[363568903,1748770258004,-12666.87825251,0.00021,10]
[363568905,1748770258014,-4731.817815,0.0002101,2]
[363568907,1748770258024,-160.053727,0.0002106,2]
[363568909,1748770258034,-219.664757,0.00021095,2]
[363568911,1748770258043,-151.0,0.00021095,2]
[363568913,1748770258052,-151.0,0.00021095,2]
[363568915,1748770258062,-161.262007,0.00021095,2]
[363568917,1748770258071,-161.262007,0.00021095,2]
[363568919,1748770258080,-299.041725,0.00021095,2]
[363568921,1748770258090,-299.041725,0.00021095,2]
[363568923,1748770258099,-345.077216,0.00021095,2]
[363568925,1748770258108,-345.077216,0.00021095,2]
[363568927,1748770258118,-876.284792,0.00021095,2]
[363568929,1748770258127,-876.284792,0.00021095,2]
[363568931,1748770258137,-482.15,0.00021095,2]
[363568933,1748770258146,-1703.33,0.00021095,2]
[363568935,1748770258156,-430.0,0.00021095,2]
[363568937,1748770258166,-866.2,0.00021095,2]
[363568940,1748770258175,-532.26,0.00021095,2]
[363568942,1748770258185,-1626.01,0.00021095,2]
[363568943,1748770258195,-691.58,0.00021095,2]
[363568946,1748770258205,-687.88,0.00021095,2]
[363568948,1748770258214,-1139.26,0.00021095,2]
[363568949,1748770258224,-562.78,0.00021095,2]
[363568951,1748770258237,-503.99,0.00021095,2]
[363568954,1748770258246,-430.0,0.00021095,2]
[363568956,1748770258256,-1378.54,0.00021095,2]
[363568958,1748770258266,-430.0,0.00021095,2]
[363568960,1748770258276,-430.0,0.00021095,2]
[363568962,1748770258286,-614.97,0.00021095,2]
[363568964,1748770258296,-430.0,0.00021095,2]
[363568966,1748770258305,-807.09,0.00021095,2]
[363568968,1748770258315,-277.67,0.00021095,2]
[363568969,1748770258325,-615.76,0.00021095,2]
[363568972,1748770258334,-430.0,0.00021095,2]
[363568974,1748770258344,-1397.15,0.00021095,2]
[363568975,1748770258354,-12878.56,0.00021095,2]
[363568978,1748770258365,-430.0,0.00021095,2]
[363568980,1748770258375,-592.13,0.00021095,2]
[363568982,1748770258384,-895.25,0.00021095,2]
[363568984,1748770258394,-708.81,0.00021095,2]
[363568986,1748770258403,-155.0,0.00021096,2]
[363568988,1748770258413,-843.25276144,0.00021141,4]
[363568990,1748770258422,-912.15993345,0.000213,2]
[363568992,1748770258431,-160.0,0.00021326,4]
[363568994,1748770258441,-154.7610475,0.00021342,2]
[363568996,1748770258451,-154.70364,0.00021369,2]
[363568998,1748770258460,-151.0,0.00021369,2]
[363569000,1748770258469,-181.514505,0.00021369,2]
[363569002,1748770258481,-482.15,0.00021369,2]
[363569004,1748770258491,-1703.33,0.00021369,2]
[363569006,1748770258502,-430.0,0.00021369,2]
[363569008,1748770258511,-866.2,0.00021369,2]
[363569010,1748770258521,-1626.01,0.00021369,2]
[363569012,1748770258531,-691.58,0.00021369,2]
[363569014,1748770258540,-687.88,0.00021369,2]
[363569016,1748770258550,-1139.26,0.00021369,2]
[363569018,1748770258559,-562.78,0.00021369,2]
[363569020,1748770258568,-503.99,0.00021369,2]
[363569022,1748770258578,-430.0,0.00021369,2]
[363569024,1748770258587,-1378.54,0.00021369,2]
[363569026,1748770258596,-233.5877401,0.00021369,2]
[363569028,1748770258606,-430.0,0.00021369,2]
[363569030,1748770258615,-614.97,0.00021369,2]
[363569032,1748770258625,-430.0,0.00021369,2]
[363569034,1748770258634,-807.09,0.00021369,2]
[363569036,1748770258644,-615.76,0.00021369,2]
[363569038,1748770258654,-430.0,0.00021369,2]
[363569040,1748770258664,-1397.15,0.00021369,2]
[363569042,1748770258674,-12878.56,0.00021369,2]
[363569044,1748770258683,-430.0,0.00021369,2]
[363569046,1748770258694,-592.13,0.00021369,2]
[363569048,1748770258709,-895.25,0.00021369,2]
[363569050,1748770258719,-708.81,0.00021369,2]
[363569052,1748770258731,-843.25276144,0.00021417,5]
[363569054,1748770258742,-613.0,0.00021441,2]
[363569056,1748770258752,-12429.88859648,0.000215,2]
[363569058,1748770258762,-65263.65090793,0.000215,2]
[363569060,1748770258771,-3840.17238279,0.000215,30]
[363569062,1748770258781,-160.053727,0.0002156,7]
[363569064,1748770258791,-277.317427,0.000216,2]
[363569066,1748770258800,-475.959135,0.000216,2]
[363569068,1748770258810,-475.959135,0.000216,2]
[363569070,1748770258820,-345.077216,0.000216,2]
[363569072,1748770258830,-345.077222,0.000216,2]
[363569074,1748770258839,-876.284792,0.000216,2]
[363569076,1748770258849,-876.284802,0.000216,2]
[363569078,1748770258859,-169.196033,0.000216,2]
[363569080,1748770258869,-169.196035,0.000216,2]
[363569082,1748770258879,-297.600024,0.000216,2]
[363569084,1748770258889,-151.0,0.000216,2]
[363569086,1748770258899,-151.0,0.000216,2]
[363569088,1748770258910,-848.61,0.000216,2]
[363569090,1748770258920,-1639.57,0.000216,7]
[363569093,1748770258931,-50000.0,0.000216,5]
[363569095,1748770258942,-151.0,0.00021643,2]
[363569097,1748770258953,-151.0,0.00021643,2]
[363569099,1748770258964,-161.262007,0.00021643,2]
[363569100,1748770258974,-161.262007,0.00021643,2]
[363569102,1748770258986,-299.041725,0.00021643,2]
[363569104,1748770258997,-299.041725,0.00021643,2]
[363569106,1748770259007,-482.15,0.00021643,2]
[363569107,1748770259017,-1703.33,0.00021643,2]
[363569109,1748770259028,-521.64,0.00021643,2]
[363569111,1748770259038,-866.2,0.00021643,2]
[363569113,1748770259048,-1626.01,0.00021643,2]
[363569115,1748770259060,-691.58,0.00021643,2]
[363569117,1748770259070,-687.88,0.00021643,2]
[363569119,1748770259079,-1139.26,0.00021643,2]
[363569120,1748770259089,-562.78,0.00021643,2]
[363569122,1748770259098,-503.99,0.00021643,2]
[363569124,1748770259108,-430.0,0.00021643,2]
[363569126,1748770259118,-1378.54,0.00021643,2]
[363569128,1748770259128,-175.36,0.00021643,2]
[363569130,1748770259138,-614.97,0.00021643,2]
[363569131,1748770259148,-430.0,0.00021643,2]
[363569133,1748770259158,-807.09,0.00021643,2]
[363569135,1748770259170,-615.76,0.00021643,2]
[363569137,1748770259180,-430.0,0.00021643,2]
[363569139,1748770259190,-1397.15,0.00021643,2]
[363569141,1748770259200,-12878.56,0.00021643,2]
[363569143,1748770259210,-430.0,0.00021643,2]
[363569145,1748770259220,-592.13,0.00021643,2]
[363569147,1748770259232,-895.25,0.00021643,2]
[363569149,1748770259242,-708.81,0.00021643,2]
[363569150,1748770259251,-155.0,0.00021644,2]
[363569152,1748770259261,-843.25276144,0.00021693,5]
[363569154,1748770259271,-151.0,0.00021719,2]
[363569156,1748770259280,-160.0,0.000218,3]
[363569158,1748770259290,-500.0,0.00021811,2]
[363569160,1748770259299,-4161.4,0.00021844,2]
[363569161,1748770259309,-239.84119403,0.00021903,2]
[363569163,1748770259319,-500.0,0.00021917,2]
[363569165,1748770259329,-482.15,0.00021917,2]
[363569167,1748770259338,-1703.33,0.00021917,2]
[363569169,1748770259348,-866.2,0.00021917,2]
[363569171,1748770259358,-1626.01,0.00021917,2]
[363569172,1748770259368,-691.58,0.00021917,2]
[363569174,1748770259377,-687.88,0.00021917,2]
[363569176,1748770259388,-1139.26,0.00021917,2]
[363569178,1748770259397,-562.78,0.00021917,2]
[363569180,1748770259407,-503.99,0.00021917,2]
[363569182,1748770259416,-430.0,0.00021917,2]
[363569183,1748770259426,-1378.54,0.00021917,2]
[363569185,1748770259436,-614.97,0.00021917,2]
[363569187,1748770259446,-430.0,0.00021917,2]
[363569189,1748770259456,-807.09,0.00021917,2]
[363569191,1748770259466,-615.76,0.00021917,2]
[363569193,1748770259475,-430.0,0.00021917,2]
[363569195,1748770259486,-1397.15,0.00021917,2]
[363569196,1748770259496,-12878.56,0.00021917,2]
[363569198,1748770259506,-297.34,0.00021917,2]
[363569200,1748770259516,-592.13,0.00021917,2]
[363569202,1748770259526,-895.25,0.00021917,2]
[363569204,1748770259536,-708.81,0.00021917,2]
[363569205,1748770259545,-151.0,0.00021918,2]
[363569207,1748770259556,-151.0,0.00021918,2]
[363569209,1748770259566,-151.0,0.00021918,2]
[363569211,1748770259576,-244.171,0.00021918,2]
[363569213,1748770259586,-936.0,0.00021934,2]
[363569225,1748770259706,-500.0,0.00021961,2]
[363569227,1748770259717,-843.25276144,0.00021969,6]
[363569229,1748770259726,-500.0,0.00022,2]
[363569231,1748770259739,-206.0,0.0002207,2]
[363569233,1748770259749,-543.59,0.000221,7]
[363569235,1748770259758,-4666.65549967,0.00022111,2]
[363569237,1748770259768,-475.959135,0.00022191,7]
[363569239,1748770259777,-475.959135,0.00022191,7]
[363569241,1748770259787,-151.0,0.00022191,7]
[363569242,1748770259797,-187.304419,0.00022191,7]
[363569244,1748770259806,-161.262007,0.00022191,7]
[363569246,1748770259816,-161.262001,0.00022191,7]
[363569248,1748770259825,-299.041725,0.00022191,7]
[363569250,1748770259834,-299.041734,0.00022191,7]
[363569252,1748770259844,-482.15,0.00022191,2]
[363569254,1748770259853,-1703.33,0.00022191,2]
[363569256,1748770259863,-866.2,0.00022191,2]
[363569258,1748770259873,-1626.01,0.00022191,2]
[363569259,1748770259883,-691.58,0.00022191,2]
[363569261,1748770259893,-687.88,0.00022191,2]
[363569263,1748770259903,-1139.26,0.00022191,2]
[363569265,1748770259912,-562.78,0.00022191,2]
[363569267,1748770259922,-503.99,0.00022191,2]
[363569269,1748770259931,-430.0,0.00022191,2]
[363569271,1748770259940,-1378.54,0.00022191,2]
[363569273,1748770259951,-614.97,0.00022191,2]
[363569275,1748770259963,-430.0,0.00022191,2]
[363569276,1748770259973,-807.09,0.00022191,2]
[363569278,1748770259984,-615.76,0.00022191,2]
[363569280,1748770259996,-344.92492391,0.00022191,2]
[363569282,1748770260006,-1397.15,0.00022191,2]
[363569284,1748770260016,-12878.56,0.00022191,2]
[363569286,1748770260025,-592.13,0.00022191,2]
[363569288,1748770260037,-895.25,0.00022191,2]
[363569290,1748770260054,-708.81,0.00022191,2]
[363569293,1748770260068,-3872.17736237,0.00022207,2]
[363569294,1748770260079,-843.25276144,0.00022245,6]
[363569296,1748770260090,-708.0,0.00022252,2]
[363569298,1748770260100,-2227.0,0.00022252,2]
[363569300,1748770260110,-405.0,0.00022252,2]
[363569302,1748770260120,-405.0,0.00022252,2]
[363569304,1748770260131,-3700.0,0.000223,3]
[363569306,1748770260141,-312221.07495076,0.000224,2]
[363569308,1748770260151,-475.959135,0.000224,7]
[363569310,1748770260162,-475.959134,0.000224,7]
[363569312,1748770260173,-151.0,0.000224,7]
[363569314,1748770260183,-500.0,0.00022465,2]
[363569316,1748770260193,-482.15,0.00022465,2]
[363569318,1748770260204,-1703.33,0.00022465,2]
[363569320,1748770260214,-866.2,0.00022465,2]
[363569322,1748770260224,-1626.01,0.00022465,2]
[363569324,1748770260237,-691.58,0.00022465,2]
[363569326,1748770260247,-687.88,0.00022465,2]
[363569328,1748770260257,-1139.26,0.00022465,2]
[363569330,1748770260268,-562.78,0.00022465,2]
[363569332,1748770260278,-503.99,0.00022465,2]
[363569334,1748770260288,-430.0,0.00022465,2]
[363569336,1748770260298,-1378.54,0.00022465,2]
[363569338,1748770260309,-614.97,0.00022465,2]
[363569340,1748770260319,-430.0,0.00022465,2]
[363569342,1748770260330,-807.09,0.00022465,2]
[363569344,1748770260340,-615.76,0.00022465,2]
[363569346,1748770260350,-1397.15,0.00022465,2]
[363569348,1748770260360,-12878.56,0.00022465,2]
[363569350,1748770260370,-592.13,0.00022465,2]
[363569352,1748770260380,-895.25,0.00022465,2]
[363569354,1748770260391,-708.81,0.00022465,2]
[363569356,1748770260400,-150.0,0.00022489,2]
[363569358,1748770260410,-30255.0,0.000225,14]
[363569359,1748770260420,-843.25276144,0.00022521,7]
[363569361,1748770260430,-206.0,0.0002253,2]
[363569363,1748770260439,-3872.17736237,0.00022534,2]
[363569365,1748770260450,-160.053727,0.0002254,5]
[363569367,1748770260460,-40110.08,0.000226,2]
[363569369,1748770260470,-4092.81,0.000226,2]
[363569371,1748770260480,-60000.0,0.000226,7]
[363569373,1748770260491,-848.61,0.000226,7]
[363569375,1748770260501,-161.030024,0.00022603,2]
[363569377,1748770260512,-25461.53,0.00022615,6]
[363569379,1748770260523,-550.27,0.000227,14]
[363569381,1748770260533,-2000.0,0.000227,2]
[363569383,1748770260543,-2000.0,0.000227,2]
[363569385,1748770260552,-4993.68,0.00022718,2]
[363569387,1748770260562,-482.20194615,0.00022739,2]
[363569389,1748770260572,-1703.44101481,0.00022739,2]
[363569391,1748770260582,-866.34806035,0.00022739,2]
[363569393,1748770260592,-1626.01575441,0.00022739,2]
[363569395,1748770260601,-691.66,0.00022739,2]
[363569396,1748770260611,-688.03945977,0.00022739,2]
[363569398,1748770260621,-1139.38968925,0.00022739,2]
[363569400,1748770260631,-562.81038478,0.00022739,2]
[363569402,1748770260641,-504.21728188,0.00022739,2]
[363569404,1748770260651,-246.78,0.00022739,2]
[363569406,1748770260661,-1378.57669547,0.00022739,2]
[363569408,1748770260673,-615.14973813,0.00022739,2]
[363569410,1748770260682,-155.54,0.00022739,2]
[363569412,1748770260692,-807.24923136,0.00022739,2]
[363569414,1748770260702,-615.793497,0.00022739,2]
[363569416,1748770260712,-1397.2428928,0.00022739,2]
[363569418,1748770260722,-12878.70618869,0.00022739,2]
[363569420,1748770260731,-592.15989813,0.00022739,2]
[363569422,1748770260742,-895.26272284,0.00022739,2]
[363569424,1748770260752,-709.01289514,0.00022739,2]
[363569426,1748770260762,-843.25276144,0.00022797,7]
[363569428,1748770260772,-3872.17736237,0.00022861,2]
[363569430,1748770260782,-160.0,0.00022915,5]
[363569432,1748770260792,-162.127442,0.00022915,5]
[363569434,1748770260801,-756.196923,0.00022962,2]
[363569436,1748770260811,-53349.33636632,0.0002299,2]
[363569437,1748770260821,-23552.28975521,0.00023,5]
[363569439,1748770260831,-50000.0,0.00023,5]
[363569441,1748770260841,-50000.0,0.00023,5]
[363569443,1748770260851,-50000.0,0.00023,5]
[363569445,1748770260861,-50000.0,0.00023,5]
[363569447,1748770260871,-50000.0,0.00023,5]
[363569449,1748770260881,-50000.0,0.00023,5]
[363569451,1748770260893,-50000.0,0.00023,5]
[363569453,1748770260902,-50000.0,0.00023,5]
[363569455,1748770260912,-50000.0,0.00023,5]
[363569457,1748770260922,-50000.0,0.00023,5]
[363569459,1748770260931,-50000.0,0.00023,5]
[363569461,1748770260941,-38853.19188165,0.00023,5]
[363569476,1748770261117,-8047.34163874,0.00023,5]
[363569520,1748770261578,-430.0,0.00016438,2]
[363569522,1748770261588,-430.0,0.00016712,2]
[363569524,1748770261598,-3099.46647961,0.00023,5]
[363569526,1748770261608,-50000.0,0.00023,5]
[363569528,1748770261618,-12000.0,0.00023,2]
[363569530,1748770261629,-22619.0,0.00023,2]
[363569532,1748770261639,-17022.0,0.00023,2]
[363569534,1748770261650,-187984.57924795,0.00023,3]
[363569536,1748770261660,-4785.6219945,0.00023,5]
[363569538,1748770261670,-139387.32,0.00023,7]
[363569540,1748770261681,-26780.75746206,0.00023,2]
[363569542,1748770261691,-4000.0,0.00023,2]
[363569554,1748770261816,-13600.0,0.00023,7]
[363569556,1748770261827,-12525.59466847,0.00023,30]
[363569558,1748770261837,-206.0,0.00023,2]
[363569560,1748770261847,-9881.42078762,0.00023,2]
[363569562,1748770261857,-20024.60833519,0.00023,5]
[363569564,1748770261867,-160.0,0.00023,3]
[363569566,1748770261877,-160.0,0.00023,3]
[363569567,1748770261886,-160.0,0.00023,3]
[363569569,1748770261896,-160.0,0.00023,3]
[363569571,1748770261905,-160.0,0.00023,3]
[363569573,1748770261915,-423.51412927,0.00023,3]
[363569575,1748770261925,-423.51412927,0.00023,3]
[363569577,1748770261936,-229.3709046,0.00023,3]
[363569579,1748770261946,-333.0,0.00023,7]
[363569581,1748770261957,-500.0,0.00023013,2]
[363569583,1748770261967,-500.0,0.00023059,2]
[363569585,1748770261976,-843.25276144,0.00023072,8]
[363569587,1748770261987,-153.0,0.00023123,2]
[363569588,1748770261998,-153.0,0.00023123,2]
[363569590,1748770262007,-3872.17736237,0.00023187,2]
[363569592,1748770262017,-543.59,0.000232,7]
[363569594,1748770262027,-248.71531821,0.00023272,2]
[363569596,1748770262038,-333.0,0.00023288,7]
[363569598,1748770262048,-5000.0,0.000233,30]
[363569599,1748770262058,-550.27,0.000233,14]
[363569600,1748770262067,-2001.99115694,0.000233,2]
[363569601,1748770262076,-30249.0,0.00023322,7]
[363569602,1748770262086,-5000.0,0.00023328,30]
[363569603,1748770262096,-5000.0,0.00023328,30]
[363569604,1748770262105,-5000.0,0.00023328,30]
[363569605,1748770262115,-5000.0,0.00023328,30]
[363569606,1748770262125,-5000.0,0.00023328,30]
[363569607,1748770262135,-5000.0,0.00023328,30]
[363569608,1748770262145,-5000.0,0.00023328,30]
[363569609,1748770262155,-1019.5,0.00023328,30]
[363569610,1748770262165,-843.25276144,0.00023348,9]
[363569611,1748770262175,-30391.77,0.00023359,6]
[363569612,1748770262185,-122938.48,0.00023359,6]
[363569613,1748770262195,-5000.0,0.000234,6]
[363569614,1748770262205,-38270.86576966,0.000234,2]
[363569615,1748770262217,-920.97631154,0.000234,2]
[363569616,1748770262228,-918.2379188,0.000234,2]
[363569617,1748770262238,-1284.37404771,0.00023423,30]
[363569618,1748770262259,-3440.0,0.00023423,30]
[363569619,1748770262271,-275.62595229,0.00023423,30]
[363569620,1748770262282,-122.41554877,0.00023423,30]
[363569638,1748770262552,-430.0,0.00016438,2]
[363569640,1748770262562,-430.0,0.00016438,2]
[363569642,1748770262572,-430.0,0.00016438,2]
[363569644,1748770262582,-400.0,0.00016438,2]
[363569646,1748770262592,-430.0,0.00016438,2]
[363569648,1748770262603,-430.0,0.00016712,2]
[363569650,1748770262613,-430.0,0.00016712,2]
[363569652,1748770262624,-430.0,0.00016986,2]
[363569654,1748770262634,-962.0,0.00019252,2]
[363569656,1748770262644,-314.88098828,0.000199,3]
[363569658,1748770262655,-314.88098828,0.00021,7]
[363569660,1748770262666,-960.0,0.00022252,2]
[363569662,1748770262676,-314.88098828,0.00023,3]
[363569664,1748770262686,-4877.58445123,0.00023423,30]
[363569666,1748770262696,-5000.0,0.00023492,2]
[363569668,1748770262706,-4932.77282349,0.000235,2]
[363569670,1748770262718,-50942.72282894,0.000235,2]
[363569672,1748770262730,-94038.45678313,0.000235,2]
[363570145,1748770315994,640.874525,0.00013699,2]
[363570161,1748771120698,3086.44,0.0001411,2]
[363570162,1748771232133,-2000.0,0.00015575,2]
[363570163,1748771232158,-240.70097955,0.00016338,2]
[363570164,1748771232182,-207.4,0.00016428,2]
[363570165,1748771232204,-300.0,0.00016436,2]
[363570166,1748771232227,-300.0,0.00016436,2]
[363570167,1748771232249,-300.0,0.00016437,2]
[363570168,1748771232274,-300.0,0.00016437,2]
[363570169,1748771232296,-300.0,0.00016437,2]
[363570170,1748771232323,-300.0,0.00016437,2]
[363570171,1748771232346,-1200.0,0.00016437,2]
[363570172,1748771232370,-500.0,0.00016437,2]
[363570173,1748771232394,-500.0,0.00016437,2]
[363570174,1748771232418,-179.44883231,0.00016437,2]
[363570175,1748771232440,-430.0,0.00016438,2]
[363570176,1748771232462,-430.0,0.00016438,2]
[363570177,1748771232485,-559.37252558,0.00016438,2]
[363570178,1748771232506,-469.60915009,0.00016438,2]
[363570179,1748771232531,-430.0,0.00016438,2]
[363570180,1748771232555,-430.0,0.00016438,2]
[363570181,1748771232577,-430.0,0.00016438,2]
[363570182,1748771232599,-430.0,0.00016438,2]
[363570183,1748771232620,-430.0,0.00016438,2]
[363570184,1748771232644,-430.0,0.00016438,2]
[363570185,1748771232665,-430.0,0.00016438,2]
[363570186,1748771232686,-430.0,0.00016438,2]
[363570187,1748771232707,-430.0,0.00016438,2]
[363570188,1748771232729,-348.79835006,0.00016438,2]
[363570189,1748771232750,-410.27993454,0.00016438,2]
[363570190,1748771232773,-430.0,0.00016438,2]
[363570191,1748771232793,-430.0,0.00016438,2]
[363570192,1748771232818,-430.0,0.00016438,2]
[363570193,1748771232840,-430.0,0.00016438,2]
[363570194,1748771232860,-430.0,0.00016438,2]
[363570195,1748771232881,-430.0,0.00016438,2]
[363570196,1748771232902,-430.0,0.00016438,2]
[363570197,1748771232922,-400.0,0.00016438,2]
[363570198,1748771232944,-430.0,0.00016438,2]
[363570199,1748771232964,-394.27382801,0.00016438,2]
[363570200,1748771232984,-430.0,0.00016438,2]
[363570201,1748771233005,-539.73318184,0.00016438,2]
[363570202,1748771233026,-344.23476378,0.00016438,2]
[363570203,1748771233052,-435.05701142,0.00016438,2]
[363570204,1748771233073,-430.0,0.00016438,2]
[363570205,1748771233094,-512.93519082,0.00016438,2]
[363570206,1748771233115,-430.0,0.00016438,2]
[363570207,1748771233136,-443.71294305,0.00016438,2]
[363570208,1748771233158,-424.78715799,0.00016438,2]
[363570209,1748771233179,-430.0,0.00016438,2]
[363570210,1748771233200,-329.88532796,0.00016438,2]
[363570212,1748771247126,-107.37795549,0.00016438,2]
[363570213,1748771247148,-430.0,0.00016438,2]
[363570214,1748771247169,-430.0,0.00016438,2]
[363570215,1748771247192,-312.8095709,0.00016438,2]
[363570216,1748771247221,-117.1904291,0.00016438,2]
[363570217,1748771247244,-402.19344007,0.00016438,2]
[363570218,1748771247266,-430.0,0.00016438,2]
[363570219,1748771247291,-430.0,0.00016438,2]
[363570220,1748771247317,-368.63756243,0.00016438,2]
[363570221,1748771247339,-430.0,0.00016438,2]
[363570222,1748771247361,-430.0,0.00016438,2]
[363570223,1748771247385,-430.0,0.00016438,2]
[363570224,1748771247408,-356.9429258,0.00016438,2]
[363570225,1748771247432,-430.0,0.00016438,2]
[363570226,1748771247455,-405.04103203,0.00016438,2]
[363570227,1748771247478,-430.0,0.00016438,2]
[363570228,1748771247500,-430.0,0.00016438,2]
[363570229,1748771247521,-400.0,0.00016438,2]
[363570230,1748771247543,-430.0,0.00016438,2]
[363570231,1748771247569,-430.0,0.00016438,2]
[363570232,1748771247592,-430.0,0.00016438,2]
[363570233,1748771247613,-430.0,0.00016438,2]
[363570234,1748771247634,-430.0,0.00016438,2]
[363570235,1748771247656,-430.0,0.00016438,2]
[363570236,1748771247679,-430.0,0.00016438,2]
[363570237,1748771247701,-430.0,0.00016438,2]
[363570238,1748771247724,-228.14421109,0.00016438,2]
[363570241,1748771363566,608.830798,0.00013699,2]
[363570280,1748771432836,-312.93339392,0.00015616,2]
[363570282,1748771432847,-156.46669696,0.00015876,2]
[363570283,1748771432857,-210.61335715,0.00016338,2]
[363570285,1748771432866,-48.60645195,0.00016428,2]
[363570358,1748771438559,-158.79354805,0.00016428,2]
[363570360,1748771438569,-300.0,0.00016437,2]
[363570362,1748771438579,-131.20645195,0.00016437,2]
[363570367,1748771438615,-168.79354805,0.00016437,2]
[363570370,1748771438625,-300.0,0.00016437,2]
[363570373,1748771438635,-500.0,0.00016437,2]
[363570375,1748771438645,-411.49890554,0.00016437,2]
[363570377,1748771438654,-500.0,0.00016437,2]
[363570379,1748771438663,-500.0,0.00016437,2]
[363570381,1748771438673,-500.0,0.00016437,2]
[363570383,1748771438683,-500.0,0.00016437,2]
[363570385,1748771438693,-500.0,0.00016437,2]
[363570387,1748771438703,-500.0,0.00016437,2]
[363570389,1748771438715,-500.0,0.00016437,2]
[363570391,1748771438725,-500.0,0.00016437,2]
[363570393,1748771438739,-500.0,0.00016437,2]
[363570397,1748771438749,-500.0,0.00016437,2]
[363570398,1748771438758,-500.0,0.00016437,2]
[363570400,1748771438768,-500.0,0.00016437,2]
[363570403,1748771438778,-500.0,0.00016437,2]
[363570406,1748771438788,-201.85578891,0.00016438,2]
[363570408,1748771438797,-400.85672942,0.00016438,2]
[363570410,1748771438807,-430.0,0.00016438,2]
[363570412,1748771438817,-450.0,0.00016438,2]
[363570414,1748771438827,-430.0,0.00016438,2]
[363570416,1748771438837,-510.43404851,0.00016438,2]
[363570418,1748771438847,-431.37283145,0.00016438,2]
[363570420,1748771438856,-370.0,0.00016438,2]
[363570422,1748771438866,-430.0,0.00016438,2]
[363570424,1748771438876,-400.0,0.00016438,2]
[363570425,1748771438886,-430.0,0.00016438,2]
[363570427,1748771438896,-430.0,0.00016438,2]
[363570429,1748771438905,-430.0,0.00016438,2]
[363570431,1748771438915,-430.0,0.00016438,2]
[363570433,1748771438925,-430.0,0.00016438,2]
[363570434,1748771438934,-556.1101045,0.00016438,2]
[363570436,1748771438944,-430.0,0.00016438,2]
[363570438,1748771438954,-430.0,0.00016438,2]
[363570440,1748771438966,-430.0,0.00016438,2]
[363570442,1748771438976,-430.0,0.00016438,2]
[363570444,1748771438985,-430.0,0.00016438,2]
[363570446,1748771438995,-430.0,0.00016438,2]
[363570448,1748771439004,-430.0,0.00016438,2]
[363570449,1748771439014,-430.64548133,0.00016438,2]
[363570451,1748771439023,-458.20429812,0.00016438,2]
[363570453,1748771439033,-430.0,0.00016438,2]
[363570455,1748771439042,-430.0,0.00016438,2]
[363570456,1748771439052,-430.0,0.00016438,2]